bitfinex/quotes_BTCUSD_20241014
["timestamp","ask_amount","ask_price","bid_price","bid_amount"]
[1728882548233,0.34728915,64112.0,64111.0,0.003]
[1728882548706,0.34528915,64112.0,64111.0,0.003]
[1728882548924,0.35028915,64112.0,64111.0,0.003]
[1728882549365,0.002,64103.0,64102.0,0.00311953]
[1728882549587,0.155989,64107.0,64102.0,0.00311953]
[1728882549843,0.16122401,64111.0,64102.0,0.00311953]
[1728882549844,0.002,64103.0,64102.0,0.00311953]
[1728882550255,0.002,64103.0,64102.0,0.0378513]
[1728882550468,0.002,64104.0,64103.0,0.023]
[1728882550687,0.002,64104.0,64103.0,0.02611955]
[1728882550906,0.002,64104.0,64103.0,0.0378398]
[1728882552256,0.002,64104.0,64103.0,0.1938378]
[1728882552257,0.006,64104.0,64103.0,0.1938378]
[1728882552705,0.006,64104.0,64103.0,0.18996194]
[1728882553130,0.008,64104.0,64103.0,0.19388538]
[1728882553554,0.01,64104.0,64103.0,0.19388538]
[1728882553789,0.508,64104.0,64103.0,0.18996236]
[1728882554216,0.508,64104.0,64103.0,0.18996253]
[1728882554432,0.51,64104.0,64103.0,0.03084498]
[1728882555118,0.51,64104.0,64103.0,0.18684298]
[1728882555119,0.508,64104.0,64103.0,0.18684298]
[1728882555347,0.508,64104.0,64103.0,0.03084498]
[1728882555565,0.508,64104.0,64103.0,0.18684298]
[1728882555777,0.508,64104.0,64103.0,0.03084498]
[1728882556001,0.508,64104.0,64103.0,0.18684298]
[1728882556467,0.008,64104.0,64103.0,0.18684298]
[1728882556896,0.03244625,64104.0,64103.0,0.18684298]
[1728882557532,0.03244625,64104.0,64103.0,0.18660098]
[1728882558025,0.03244625,64104.0,64103.0,0.03060298]
[1728882558479,0.03444625,64104.0,64103.0,0.18660098]
[1728882558665,0.53244625,64104.0,64103.0,0.03060298]
[1728882558908,0.03244625,64104.0,64103.0,0.03452357]
[1728882559392,0.03444625,64104.0,64103.0,0.03452357]
[1728882560035,0.03444625,64104.0,64098.0,0.023]
[1728882560036,0.002,64102.0,64098.0,0.023]
[1728882560254,0.002,64100.0,64097.0,0.000823]
[1728882560467,0.002,64100.0,64097.0,0.023823]
[1728882560680,0.002,64100.0,64097.0,0.000823]
[1728882560888,0.002,64098.0,64097.0,0.000823]
[1728882561098,0.002,64102.0,64097.0,0.000823]
[1728882561323,0.002,64098.0,64097.0,0.000823]
[1728882561546,0.04805177,64100.0,64097.0,0.000823]
[1728882561763,0.24215177,64098.0,64097.0,0.000823]
[1728882562202,0.1951,64098.0,64097.0,0.000823]
[1728882562411,0.26417766,64098.0,64097.0,0.000823]
[1728882562620,0.26317766,64098.0,64097.0,0.000823]
[1728882562864,0.26317766,64098.0,64097.0,0.025823]
[1728882563079,0.26317766,64098.0,64097.0,0.023823]
[1728882563311,0.1941,64098.0,64097.0,0.027823]
[1728882563565,0.26359066,64098.0,64097.0,0.027823]
[1728882563785,0.1941,64098.0,64097.0,0.000823]
[1728882564007,0.26558897,64098.0,64097.0,0.000823]
[1728882564193,0.36715892,64098.0,64097.0,0.000823]
[1728882564442,0.1961,64098.0,64097.0,0.000823]
[1728882564656,0.2021,64098.0,64097.0,0.000823]
[1728882564874,0.27160442,64098.0,64097.0,0.000823]
[1728882565087,0.07550442,64098.0,64097.0,0.000823]
[1728882565504,0.07750442,64098.0,64097.0,0.023823]
[1728882565934,0.008,64098.0,64097.0,0.023823]
[1728882566145,0.008,64098.0,64097.0,0.179836]
[1728882566361,0.05432661,64098.0,64097.0,0.179836]
[1728882566579,0.008,64098.0,64097.0,0.179836]
[1728882566792,0.07077523,64098.0,64097.0,0.000823]
[1728882567012,0.04777523,64098.0,64097.0,0.02694288]
[1728882567226,0.02544515,64098.0,64097.0,0.18295588]
[1728882567645,0.03044515,64098.0,64097.0,0.18295588]
[1728882569022,0.03044515,64098.0,64097.0,0.32547675]
[1728882569273,0.03044515,64098.0,64097.0,0.32235687]
[1728882569912,0.03044515,64098.0,64097.0,0.33027765]
[1728882570136,0.02544515,64098.0,64097.0,0.33027765]
[1728882570386,0.02944515,64098.0,64097.0,0.33027765]
[1728882570891,0.00544515,64098.0,64097.0,0.33027765]
[1728882571157,0.005,64098.0,64097.0,0.33027765]
[1728882571386,0.004,64098.0,64097.0,0.33027765]
[1728882574633,0.004,64098.0,64097.0,0.18775678]
[1728882575058,0.004,64098.0,64097.0,0.19171717]
[1728882577553,0.004,64098.0,64097.0,0.19660388]
[1728882577779,0.004,64098.0,64097.0,0.19171717]
[1728882577998,0.004,64098.0,64097.0,0.19660388]
[1728882578221,0.004,64098.0,64097.0,0.19171717]
[1728882579598,0.004,64098.0,64097.0,0.19660394]
[1728882580057,0.004,64098.0,64097.0,0.19171717]
[1728882580281,0.004,64098.0,64097.0,0.19660397]
[1728882580926,0.004,64098.0,64097.0,0.19171717]
[1728882584028,0.004,64098.0,64097.0,0.19660394]
[1728882584500,0.005644,64098.0,64097.0,0.19171717]
[1728882587687,0.005644,64098.0,64097.0,0.19660391]
[1728882591278,0.05198941,64098.0,64097.0,0.19660391]
[1728882591931,0.05204545,64098.0,64097.0,0.19660391]
[1728882592880,0.05204545,64098.0,64097.0,0.19171717]
[1728882593107,0.05204545,64098.0,64097.0,0.19660388]
[1728882593303,0.005644,64098.0,64097.0,0.19660388]
[1728882595698,0.005644,64098.0,64097.0,0.04059088]
[1728882597984,0.0984469,64098.0,64097.0,0.04059088]
[1728882598198,0.26980321,64098.0,64097.0,0.04059088]
[1728882598405,0.17700031,64098.0,64097.0,0.000823]
[1728882598623,0.17700031,64098.0,64097.0,0.0287101]
[1728882599665,0.17300031,64098.0,64097.0,0.0287101]
[1728882599906,0.10248018,64098.0,64097.0,0.0287101]
[1728882600114,0.27183649,64098.0,64097.0,0.0287101]
[1728882600337,0.27183649,64098.0,64097.0,0.03783062]
[1728882600566,0.27183649,64098.0,64097.0,0.0287101]
[1728882600806,0.27183649,64098.0,64097.0,0.02871007]
[1728882600807,0.18100031,64098.0,64097.0,0.02871007]
[1728882601294,0.18100031,64098.0,64097.0,0.03783059]
[1728882601504,0.17900031,64098.0,64097.0,0.03783059]
[1728882601721,0.17300031,64098.0,64097.0,0.03783064]
[1728882601936,0.17500031,64098.0,64097.0,0.03783064]
[1728882602156,0.18100031,64098.0,64097.0,0.03783064]
[1728882603064,0.18100031,64098.0,64097.0,0.03783055]
[1728882603065,0.27387245,64098.0,64097.0,0.03783055]
[1728882603298,0.18100031,64098.0,64097.0,0.03783055]
[1728882603946,0.18100031,64098.0,64097.0,0.02871003]
[1728882604184,0.18100031,64098.0,64097.0,0.03788417]
[1728882605069,0.27387245,64098.0,64097.0,0.03788417]
[1728882605501,0.18100031,64098.0,64097.0,0.02871003]
[1728882605712,0.18100031,64098.0,64097.0,0.03788417]
[1728882605928,0.18100031,64098.0,64097.0,0.19389717]
[1728882606157,0.07931072,64098.0,64097.0,0.19389717]
[1728882606369,0.009644,64098.0,64097.0,0.03788417]
[1728882606582,0.17507763,64098.0,64097.0,0.03788417]
[1728882606801,0.07830994,64098.0,64097.0,0.02871003]
[1728882607009,0.03308917,64098.0,64097.0,0.03789]
[1728882607239,0.03108917,64098.0,64097.0,0.02871003]
[1728882607488,0.10075279,64098.0,64097.0,0.02871003]
[1728882607717,0.10175279,64098.0,64097.0,0.03788951]
[1728882607957,0.10175279,64098.0,64097.0,0.19390251]
[1728882608220,0.10175279,64098.0,64097.0,0.03788951]
[1728882608451,0.10175279,64098.0,64097.0,0.19390251]
[1728882608945,0.10175279,64098.0,64097.0,0.04100938]
[1728882609197,0.1017565,64098.0,64097.0,0.04100938]
[1728882609438,0.03208917,64098.0,64097.0,0.03788951]
[1728882609940,0.00808917,64098.0,64097.0,0.19702224]
[1728882610202,0.04744968,64098.0,64097.0,0.19390209]
[1728882610437,0.001,64098.0,64097.0,0.21127107]
[1728882610678,0.001,64098.0,64097.0,0.37561478]
[1728882610924,0.001,64098.0,64097.0,0.3842132]
[1728882611143,0.001,64098.0,64097.0,0.4842132]
[1728882611371,0.001,64098.0,64097.0,0.49949325]
[1728882611584,0.001646,64104.0,64103.0,0.155998]
[1728882611818,0.001646,64104.0,64103.0,0.49361482]
[1728882612037,0.001646,64104.0,64103.0,0.50338374]
[1728882612262,0.001646,64104.0,64103.0,0.74027408]
[1728882612517,0.001646,64104.0,64103.0,0.59784782]
[1728882612937,0.001646,64104.0,64103.0,0.60184782]
[1728882613389,0.001646,64104.0,64103.0,0.59784782]
[1728882613617,0.001646,64104.0,64103.0,0.62084782]
[1728882613904,0.002646,64104.0,64103.0,0.62482379]
[1728882614128,0.001644,64112.0,64111.0,0.178979]
[1728882614365,0.001644,64112.0,64111.0,0.50487443]
[1728882614587,0.001644,64112.0,64111.0,0.65673349]
[1728882614834,0.001644,64112.0,64111.0,0.77199757]
[1728882615297,0.001644,64127.0,64126.0,0.237442]
[1728882615526,0.001644,64127.0,64126.0,0.55552078]
[1728882615746,0.001644,64127.0,64126.0,0.67286502]
[1728882616231,0.001644,64127.0,64126.0,0.69586502]
[1728882616474,0.001644,64127.0,64126.0,0.54562927]
[1728882616962,0.001644,64127.0,64126.0,0.55262927]
[1728882617197,0.002644,64127.0,64126.0,0.54307901]
[1728882617434,0.002644,64127.0,64126.0,0.55258273]
[1728882617898,0.002644,64127.0,64126.0,0.47108273]
[1728882618144,0.002644,64127.0,64126.0,0.204355]
[1728882618400,0.002644,64127.0,64126.0,0.20290677]
[1728882618915,0.003644,64127.0,64126.0,0.36281157]
[1728882619155,0.002644,64127.0,64126.0,0.36057739]
[1728882619374,0.002644,64127.0,64126.0,0.35857739]
[1728882619640,0.003644,64127.0,64126.0,0.46457739]
[1728882619876,0.003644,64127.0,64126.0,0.47406675]
[1728882620117,0.002644,64127.0,64126.0,0.46806675]
[1728882620309,0.002644,64127.0,64126.0,0.46457739]
[1728882620310,0.003644,64127.0,64126.0,0.46457739]
[1728882620804,0.002644,64127.0,64126.0,0.46057682]
[1728882621035,0.003644,64127.0,64126.0,0.59187682]
[1728882621732,0.003644,64127.0,64126.0,0.60135348]
[1728882621950,0.003644,64127.0,64126.0,0.60134777]
[1728882622166,0.003644,64127.0,64126.0,0.59187682]
[1728882623040,0.003644,64127.0,64126.0,0.54287682]
[1728882623722,0.001644,64137.0,64133.0,0.311848]
[1728882623944,0.001644,64137.0,64136.0,0.72498021]
[1728882624163,0.001644,64137.0,64136.0,0.81076343]
[1728882624393,0.001644,64137.0,64136.0,0.67763597]
[1728882625047,0.002644,64137.0,64136.0,0.68163597]
[1728882625739,0.002644,64137.0,64136.0,0.67763597]
[1728882626185,0.001644,64137.0,64136.0,0.67763597]
[1728882626429,0.002644,64137.0,64136.0,0.68675275]
[1728882626713,0.002644,64137.0,64136.0,1.11692761]
[1728882626962,0.003644,64137.0,64136.0,0.76410692]
[1728882627172,0.003644,64137.0,64136.0,0.75463597]
[1728882628098,0.003644,64137.0,64136.0,0.74975275]
[1728882628336,0.003644,64137.0,64136.0,0.7546348]
[1728882629005,0.2582968,64166.0,64162.0,0.155855]
[1728882629241,0.23387254,64166.0,64162.0,0.48249811]
[1728882629468,0.001646,64177.0,64162.0,0.63398171]
[1728882629469,0.001646,64169.0,64162.0,0.63398171]
[1728882629694,0.001646,64169.0,64162.0,0.73398171]
[1728882629909,0.001646,64169.0,64162.0,0.59156261]
[1728882630568,0.001646,64169.0,64162.0,0.59656261]
[1728882631008,0.001646,64169.0,64162.0,0.73898171]
[1728882631242,0.001646,64169.0,64162.0,0.75298171]
[1728882631475,0.001646,64169.0,64162.0,0.74798171]
[1728882631696,0.001646,64169.0,64162.0,0.74898171]
[1728882631915,0.001646,64169.0,64162.0,0.62544279]
[1728882632152,0.001646,64169.0,64162.0,0.61144279]
[1728882632648,0.001646,64169.0,64162.0,0.98673443]
[1728882632880,0.001646,64169.0,64162.0,0.77628333]
[1728882633126,0.001646,64169.0,64162.0,0.76686189]
[1728882633636,0.001646,64169.0,64162.0,0.63844279]
[1728882633863,0.001646,64169.0,64162.0,0.61439803]
[1728882634100,0.001646,64169.0,64162.0,0.62839803]
[1728882634369,0.001646,64169.0,64162.0,0.61439803]
[1728882634585,0.001646,64169.0,64162.0,0.62839803]
[1728882634864,0.001646,64169.0,64162.0,0.77081713]
[1728882635106,0.001646,64169.0,64162.0,0.75681713]
[1728882635362,0.001646,64169.0,64162.0,0.62351785]
[1728882635645,0.001646,64169.0,64162.0,0.63781714]
[1728882636335,0.001646,64169.0,64162.0,0.81145624]
[1728882636597,0.00145602,64163.0,64162.0,0.81145624]
[1728882637337,0.00145602,64163.0,64162.0,0.82652728]
[1728882637803,0.001646,64169.0,64168.0,0.27884]
[1728882638033,0.001646,64169.0,64168.0,0.60459023]
[1728882638244,0.001646,64169.0,64168.0,0.6348538]
[1728882638712,0.001646,64169.0,64168.0,0.19313965]
[1728882638931,0.001646,64169.0,64168.0,0.17103253]
[1728882639146,0.001646,64169.0,64168.0,0.18991336]
[1728882639831,0.001646,64169.0,64168.0,0.19772323]
[1728882640039,0.001646,64169.0,64168.0,0.21172323]
[1728882640262,0.001646,64169.0,64168.0,0.19772323]
[1728882640484,0.001646,64169.0,64168.0,0.2071636]
[1728882640726,0.001646,64169.0,64168.0,0.41149284]
[1728882640943,0.001646,64169.0,64168.0,0.39749284]
[1728882641422,0.001646,64169.0,64168.0,0.40249284]
[1728882641651,0.001646,64169.0,64168.0,0.39749284]
[1728882641859,0.001646,64169.0,64168.0,0.39249284]
[1728882642329,0.001646,64169.0,64168.0,0.39749284]
[1728882642553,0.001646,64169.0,64168.0,0.47294724]
[1728882642776,0.001646,64169.0,64168.0,0.48294724]
[1728882643000,0.001646,64169.0,64168.0,0.52265227]
[1728882643229,0.001646,64177.0,64176.0,0.155821]
[1728882643451,0.001646,64177.0,64176.0,0.35217108]
[1728882643633,0.001646,64177.0,64176.0,0.37365083]
[1728882643867,0.001646,64177.0,64176.0,0.53487484]
[1728882644327,0.001646,64177.0,64176.0,0.55064156]
[1728882644559,0.002646,64177.0,64176.0,0.53587484]
[1728882645005,0.002646,64177.0,64176.0,0.56325527]
[1728882645292,0.002646,64177.0,64176.0,0.54748855]
[1728882646389,0.002646,64177.0,64176.0,0.64749499]
[1728882646626,0.002646,64177.0,64176.0,0.66608724]
[1728882646840,0.002646,64177.0,64176.0,0.64749499]
[1728882647062,0.002646,64177.0,64176.0,0.66608724]
[1728882647276,0.001646,64177.0,64176.0,0.64649499]
[1728882647492,0.002646,64177.0,64176.0,0.66508724]
[1728882647706,0.002646,64177.0,64176.0,0.66608724]
[1728882648171,0.001646,64177.0,64176.0,0.66608724]
[1728882648383,0.001646,64177.0,64176.0,0.67208724]
[1728882649731,0.001646,64177.0,64176.0,0.67108724]
[1728882649937,0.001646,64177.0,64176.0,0.62825825]
[1728882650144,0.001646,64177.0,64176.0,0.64413811]
[1728882650356,0.001646,64177.0,64176.0,0.68219155]
[1728882651424,0.1861,64182.0,64181.0,0.2982281]
[1728882651640,0.1861,64182.0,64181.0,0.38881318]
[1728882651860,0.1861,64182.0,64181.0,0.40387369]
[1728882652079,0.1861,64182.0,64181.0,0.06403287]
[1728882652080,0.419606,64182.0,64181.0,0.06403287]
[1728882652303,0.157814,64179.0,64178.0,0.01581538]
[1728882652510,0.311623,64180.0,64176.0,0.017]
[1728882652730,0.002,64177.0,64176.0,0.006]
[1728882652955,0.259,64170.0,64169.0,0.23387254]
[1728882653175,0.5592551,64170.0,64169.0,0.23387254]
[1728882653408,0.5592551,64170.0,64146.0,0.1424191]
[1728882653409,0.002,64162.0,64156.0,0.155868]
[1728882653629,0.72049811,64162.0,64151.0,0.01865628]
[1728882653857,0.57807901,64162.0,64153.0,0.155877]
[1728882654076,0.002,64160.0,64149.0,0.311772]
[1728882654298,0.42022401,64162.0,64155.0,0.00311711]
[1728882654299,0.259,64162.0,64155.0,0.00311711]
[1728882654500,0.259,64162.0,64161.0,0.155857]
[1728882654738,0.1813,64162.0,64161.0,0.155857]
[1728882655008,0.1813,64162.0,64161.0,0.178857]
[1728882655220,0.1823,64162.0,64161.0,0.179857]
[1728882656060,0.1843,64162.0,64161.0,0.179857]
[1728882659841,0.1833,64162.0,64161.0,0.178857]
[1728882660060,0.1813,64162.0,64161.0,0.19154502]
[1728882660277,0.1823,64162.0,64161.0,0.19154502]
[1728882660731,0.1863,64162.0,64161.0,0.19154502]
[1728882660943,0.1863,64162.0,64161.0,0.19754502]
[1728882661394,0.1813,64162.0,64161.0,0.19754502]
[1728882661641,0.1813,64162.0,64161.0,0.19854502]
[1728882661860,0.02442058,64166.0,64165.0,0.155848]
[1728882662095,0.02442058,64166.0,64165.0,0.48560749]
[1728882662309,0.02442058,64166.0,64165.0,0.51825621]
[1728882663009,0.02442058,64166.0,64165.0,0.51925621]
[1728882663455,0.02742058,64166.0,64165.0,0.51925621]
[1728882663894,0.003,64166.0,64165.0,0.51925753]
[1728882664330,0.003,64166.0,64165.0,0.54039117]
[1728882664556,0.003,64166.0,64165.0,0.65904573]
[1728882664768,0.0773,64176.0,64175.0,0.155823]
[1728882665031,0.0773,64176.0,64175.0,0.21126989]
[1728882665243,0.0773,64176.0,64175.0,0.22398668]
[1728882665908,0.1895,64179.0,64175.0,0.21369894]
[1728882666118,0.1895,64179.0,64178.0,0.178816]
[1728882666336,0.1895,64179.0,64178.0,0.21126289]
[1728882666553,0.1895,64179.0,64178.0,0.22393134]
[1728882667403,0.1895,64179.0,64178.0,0.22693134]
[1728882668267,0.1905,64179.0,64178.0,0.22693134]
[1728882669126,0.192142,64179.0,64178.0,0.22693134]
[1728882669537,0.191142,64179.0,64178.0,0.22693134]
[1728882669749,0.191142,64179.0,64178.0,0.22393134]
[1728882669960,0.193142,64179.0,64178.0,0.22393134]
[1728882670176,0.193142,64179.0,64178.0,0.22593134]
[1728882670379,0.191142,64179.0,64178.0,0.22593134]
[1728882670850,0.193142,64179.0,64178.0,0.22593134]
[1728882671371,0.193142,64179.0,64178.0,0.21076953]
[1728882671589,0.193142,64179.0,64178.0,0.20129293]
[1728882671815,0.003642,64179.0,64178.0,0.39026713]
[1728882672015,0.003642,64179.0,64178.0,0.38715125]
[1728882672447,0.003642,64179.0,64178.0,0.38515125]
[1728882672675,0.003642,64179.0,64178.0,0.38715125]
[1728882673094,0.001642,64179.0,64178.0,0.38515125]
[1728882673302,0.001642,64179.0,64178.0,0.37199105]
[1728882673561,0.003642,64179.0,64178.0,0.38714942]
[1728882674058,0.001642,64179.0,64178.0,0.22592541]
[1728882674286,0.002642,64179.0,64178.0,0.20295856]
[1728882674475,0.002642,64179.0,64178.0,0.19348445]
[1728882674715,0.001642,64179.0,64178.0,0.19348445]
[1728882675160,0.411056,64179.0,64178.0,0.01466845]
[1728882675382,0.411056,64179.0,64170.0,0.155835]
[1728882675383,0.1693,64175.0,64170.0,0.155835]
[1728882675607,0.1693,64175.0,64169.0,0.23387254]
[1728882675608,0.002,64170.0,64169.0,0.23387254]
[1728882675826,0.0823,64174.0,64169.0,0.23387254]
[1728882675827,0.04641091,64173.0,64169.0,0.23387254]
[1728882676040,0.12871091,64174.0,64168.0,0.46752]
[1728882676265,0.12871091,64174.0,64169.0,0.155838]
[1728882676506,0.12871091,64174.0,64170.0,0.155835]
[1728882676713,0.0823,64174.0,64171.0,0.023]
[1728882676925,0.002,64173.0,64171.0,0.023]
[1728882677147,0.002,64169.0,64165.0,0.023]
[1728882677395,0.235,64168.0,64163.0,0.155851]
[1728882677602,0.235,64168.0,64164.0,0.023]
[1728882677603,0.28141091,64168.0,64164.0,0.023]
[1728882677840,0.002,64162.0,64161.0,0.000821]
[1728882678049,0.235,64162.0,64161.0,0.000821]
[1728882678688,0.25942198,64162.0,64161.0,0.000821]
[1728882679388,0.25942198,64162.0,64161.0,0.023821]
[1728882679389,0.26342198,64162.0,64161.0,0.023821]
[1728882679824,0.26942198,64162.0,64161.0,0.023821]
[1728882680266,0.26742198,64162.0,64161.0,0.000821]
[1728882680510,0.26342198,64162.0,64161.0,0.000821]
[1728882680733,0.26542198,64162.0,64161.0,0.18279494]
[1728882680954,0.26542198,64162.0,64161.0,0.179678]
[1728882681894,0.26142198,64162.0,64161.0,0.179678]
[1728882682132,0.26142198,64162.0,64161.0,0.024821]
[1728882682551,0.25942198,64162.0,64161.0,0.024821]
[1728882682774,0.25942198,64162.0,64161.0,0.023821]
[1728882682990,0.26142198,64162.0,64161.0,0.03449777]
[1728882683234,0.26142198,64162.0,64161.0,0.03549777]
[1728882683457,0.41527698,64162.0,64161.0,0.01149777]
[1728882683674,0.239,64162.0,64161.0,0.01149777]
[1728882683906,0.237,64162.0,64161.0,0.001821]
[1728882684150,0.237,64162.0,64161.0,0.01251138]
[1728882684370,0.235,64162.0,64161.0,0.001821]
[1728882684597,0.390855,64162.0,64161.0,0.001821]
[1728882684804,0.392855,64162.0,64161.0,0.001821]
[1728882685036,0.60545389,64162.0,64161.0,0.000821]
[1728882685257,0.60545389,64162.0,64152.0,0.23387254]
[1728882685258,0.155877,64153.0,64152.0,0.23387254]
[1728882685471,0.393877,64153.0,64152.0,0.23387254]
[1728882685714,0.393877,64153.0,64152.0,0.01084215]
[1728882685715,0.236,64153.0,64152.0,0.01084215]
[1728882685944,0.236,64153.0,64145.0,0.23387254]
[1728882686160,0.236,64153.0,64152.0,0.01084215]
[1728882686369,0.236,64153.0,64149.0,0.155884]
[1728882686616,0.244,64153.0,64150.0,0.155883]
[1728882686839,0.27042471,64153.0,64150.0,0.155882]
[1728882687044,0.27042471,64153.0,64151.0,0.01084994]
[1728882687256,0.26442471,64153.0,64151.0,0.01084994]
[1728882687679,0.27042471,64153.0,64151.0,0.01084994]
[1728882687930,0.002,64152.0,64151.0,0.01084994]
[1728882688163,0.26642471,64153.0,64148.0,0.023]
[1728882688384,0.27042471,64153.0,64148.0,0.155888]
[1728882688627,0.27042471,64153.0,64151.0,0.01084994]
[1728882688628,0.26842471,64153.0,64151.0,0.01084994]
[1728882688827,0.26242471,64153.0,64150.0,0.155884]
[1728882689030,0.26642471,64153.0,64152.0,0.01084215]
[1728882689249,0.26842471,64153.0,64149.0,0.155886]
[1728882689472,0.26842471,64153.0,64152.0,0.01084215]
[1728882689683,0.26642471,64153.0,64146.0,0.023]
[1728882689896,0.155882,64151.0,64146.0,0.023]
[1728882690104,0.26842471,64153.0,64147.0,0.0108948]
[1728882690324,0.26642471,64153.0,64148.0,0.023]
[1728882690506,0.26042471,64153.0,64148.0,0.023]
[1728882690764,0.26042471,64153.0,64144.0,0.311798]
[1728882690765,0.15899664,64152.0,64149.0,0.01087921]
[1728882690994,0.319284,64150.0,64149.0,0.01087921]
[1728882691249,0.319284,64150.0,64145.0,0.25687254]
[1728882691250,0.002,64146.0,64145.0,0.25687254]
[1728882691520,0.002,64146.0,64138.0,0.000821]
[1728882691521,0.002,64144.0,64138.0,0.000821]
[1728882691798,0.2447,64146.0,64143.0,0.23387254]
[1728882692039,0.2447,64146.0,64138.0,0.000821]
[1728882692040,0.1559,64144.0,64138.0,0.000821]
[1728882692528,0.42702201,64146.0,64138.0,0.156732]
[1728882692733,0.26912801,64146.0,64142.0,0.155902]
[1728882693119,0.26912801,64146.0,64139.0,0.311819]
[1728882693120,0.26912801,64146.0,64141.0,0.155906]
[1728882693379,0.26912801,64146.0,64138.0,0.001821]
[1728882693380,0.26912801,64146.0,64140.0,0.155908]
[1728882693587,0.155898,64145.0,64138.0,0.001821]
[1728882693817,0.27512801,64146.0,64140.0,0.155908]
[1728882694062,0.2507,64146.0,64140.0,0.155907]
[1728882694351,0.2507,64146.0,64139.0,0.311822]
[1728882694555,0.002,64142.0,64141.0,0.155906]
[1728882694764,0.002,64142.0,64140.0,0.155908]
[1728882694968,0.002,64142.0,64141.0,0.155906]
[1728882695179,0.2497,64146.0,64141.0,0.155906]
[1728882695180,0.002,64144.0,64141.0,0.155906]
[1728882695384,0.002,64144.0,64139.0,0.00311789]
[1728882695613,0.002,64142.0,64141.0,0.155906]
[1728882695815,0.002,64142.0,64139.0,0.00311789]
[1728882696033,0.2487,64146.0,64145.0,0.155896]
[1728882696247,0.2487,64146.0,64144.0,0.155896]
[1728882696453,0.2467,64146.0,64145.0,0.155896]
[1728882696665,0.002,64145.0,64141.0,0.023]
[1728882696915,0.002,64145.0,64144.0,0.155899]
[1728882697545,0.002,64144.0,64143.0,0.178901]
[1728882697760,0.311799,64144.0,64139.0,0.001]
[1728882697977,0.1599,64143.0,64139.0,0.001]
[1728882698210,0.155904,64142.0,64138.0,0.000821]
[1728882698423,0.002,64141.0,64140.0,0.01098842]
[1728882698634,0.1599,64143.0,64138.0,0.000821]
[1728882698635,0.002,64140.0,64138.0,0.000821]
[1728882698850,0.1599,64143.0,64138.0,0.000821]
[1728882698851,0.002,64141.0,64140.0,0.01100014]
[1728882699060,0.002,64141.0,64139.0,0.001]
[1728882699266,0.1599,64143.0,64138.0,0.000821]
[1728882699267,0.002,64140.0,64138.0,0.000821]
[1728882699475,0.401611,64139.0,64138.0,0.000821]
[1728882699696,0.403611,64139.0,64138.0,0.000821]
[1728882700338,0.42804198,64139.0,64138.0,0.000821]
[1728882701035,0.43504198,64139.0,64138.0,0.000821]
[1728882701910,0.43904198,64139.0,64138.0,0.000821]
[1728882702501,0.60026599,64139.0,64138.0,0.000821]
[1728882703802,0.57583501,64139.0,64138.0,0.000821]
[1728882704856,0.41792401,64139.0,64138.0,0.000821]
[1728882705257,0.41992401,64139.0,64138.0,0.000821]
[1728882705464,0.57583501,64139.0,64138.0,0.000821]
[1728882705694,0.41792401,64139.0,64138.0,0.000821]
[1728882705977,0.2567,64139.0,64138.0,0.000821]
[1728882706730,0.2567,64139.0,64138.0,0.01183673]
[1728882706975,0.28313026,64139.0,64138.0,0.000821]
[1728882707222,0.28313026,64139.0,64138.0,0.01187945]
[1728882707948,0.28313026,64139.0,64138.0,0.000821]
[1728882708169,0.28313026,64139.0,64138.0,0.01187686]
[1728882708397,0.28313026,64139.0,64138.0,0.000821]
[1728882708872,0.28313026,64139.0,64138.0,0.01187698]
[1728882709091,0.19813026,64139.0,64138.0,0.156734]
[1728882709302,0.19813026,64139.0,64138.0,0.16778998]
[1728882710213,0.03543026,64139.0,64138.0,0.19078998]
[1728882710416,0.03543026,64139.0,64138.0,0.20027325]
[1728882712133,0.03543026,64139.0,64138.0,0.04436025]
[1728882712860,0.03543026,64139.0,64138.0,0.03487698]
[1728882713083,0.03543026,64139.0,64138.0,0.04436667]
[1728882713309,0.03543026,64139.0,64138.0,0.02136667]
[1728882713994,0.011,64139.0,64138.0,0.02136667]
[1728882714687,0.011,64139.0,64138.0,0.03113429]
[1728882714917,0.011,64139.0,64138.0,0.18704729]
[1728882715151,0.011,64139.0,64138.0,0.03113429]
[1728882715852,0.011,64139.0,64138.0,0.04633268]
[1728882716099,0.011,64139.0,64138.0,0.03113429]
[1728882716330,0.2458,64139.0,64138.0,0.03113429]
[1728882716580,0.2458,64139.0,64138.0,0.02136667]
[1728882716816,0.2458,64139.0,64138.0,0.01031069]
[1728882717318,0.2438,64139.0,64138.0,0.02135718]
[1728882717530,0.2438,64139.0,64138.0,0.01031069]
[1728882717756,0.2438,64139.0,64138.0,0.02135718]
[1728882718020,0.2438,64139.0,64138.0,0.01031069]
[1728882718242,0.26822902,64139.0,64138.0,0.01031069]
[1728882718469,0.26822902,64139.0,64138.0,0.02135718]
[1728882719709,0.27022902,64139.0,64138.0,0.02135718]
[1728882720128,0.27022902,64139.0,64138.0,0.01186749]
[1728882720336,0.27022902,64139.0,64138.0,0.02137106]
[1728882721975,0.27022902,64139.0,64138.0,0.01186749]
[1728882722188,0.26822902,64139.0,64138.0,0.01186749]
[1728882722433,0.26822902,64139.0,64138.0,0.0213749]
[1728882722859,0.26822902,64139.0,64138.0,0.16778049]
[1728882723080,0.19302902,64139.0,64138.0,0.17728813]
[1728882723291,0.03542902,64139.0,64138.0,0.19250147]
[1728882723925,0.011,64139.0,64138.0,0.19250147]
[1728882724135,0.011,64139.0,64138.0,0.20226905]
[1728882725001,0.011,64139.0,64138.0,0.04635605]
[1728882725211,0.011,64139.0,64138.0,0.20226905]
[1728882725449,0.011,64139.0,64138.0,0.22526905]
[1728882726530,0.011,64139.0,64138.0,0.21550147]
[1728882726736,0.011,64139.0,64138.0,0.06935573]
[1728882726992,0.59327062,64139.0,64138.0,0.04635573]
[1728882727189,0.77833462,64139.0,64138.0,0.01186749]
[1728882727449,0.77833462,64139.0,64138.0,0.000821]
[1728882728324,0.46119961,64139.0,64138.0,0.000821]
[1728882728532,0.45419961,64139.0,64138.0,0.000821]
[1728882729005,0.57045564,64139.0,64138.0,0.000821]